bitfinex/quotes_SOLUSD_20250420
["timestamp","ask_amount","ask_price","bid_price","bid_amount"]
[1745118027682,14.57415462,141.28,141.23,7.49584029]
[1745118036092,7.49584029,141.27,141.21,40.57734856]
[1745118036783,7.49584029,141.27,141.21,33.4958403]
[1745118036988,7.49584029,141.26,141.21,33.4958403]
[1745118037997,14.5753535,141.26,141.21,33.4958403]
[1745118039696,14.5753535,141.26,141.21,40.57745784]
[1745118040996,7.07951321,141.26,141.22,7.49584029]
[1745118042493,7.49584029,141.26,141.21,1e-08]
[1745118042793,7.49584029,141.25,141.21,1e-08]
[1745118043898,14.57578025,141.25,141.21,1e-08]
[1745118045189,7.49584029,141.26,141.22,7.49584029]
[1745118045495,21.27584029,141.27,141.22,7.49584029]
[1745118046696,28.35466898,141.27,141.22,7.49584029]
[1745118048200,7.49584029,141.26,141.21,7.4958403]
[1745118049096,14.57544807,141.26,141.21,7.4958403]
[1745118050600,7.49584029,141.25,141.21,1e-08]
[1745118051608,14.57575475,141.25,141.21,1e-08]
[1745118052098,7.07991446,141.25,141.21,7.4958403]
[1745118052799,21.27584029,141.27,141.22,7.49584029]
[1745118053698,28.35465026,141.27,141.22,14.57693803]
[1745118053901,20.85880997,141.27,141.23,7.49584029]
[1745118054106,7.07880997,141.27,141.23,7.49584029]
[1745118057606,14.5741676,141.28,141.23,7.49584029]
[1745118059194,7.49584029,141.27,141.22,7.49584029]
[1745118060406,7.49584029,141.27,141.21,14.57734294]
[1745118061409,7.49584029,141.26,141.21,7.4958403]
[1745118061607,7.49584029,141.26,141.21,1e-08]
[1745118061914,7.49584029,141.25,141.21,1e-08]
[1745118062912,7.49584029,141.26,141.21,1e-08]
[1745118063611,7.07964601,141.25,141.21,1e-08]
[1745118064616,7.07964601,141.25,141.21,7.4958403]
[1745118064998,7.07964601,141.25,141.15,28.80583188]
[1745118064999,26.0,141.19,141.17,0.063]
[1745118065199,18.64964886,141.18,141.17,0.063]
[1745118065512,26.14548915,141.18,141.17,0.063]
[1745118066107,26.14548915,141.18,141.17,1e-08]
[1745118066924,44.64964886,141.16,141.15,1e-08]
[1745118067132,59.22964896,141.16,141.15,1e-08]
[1745118073131,73.00964896,141.16,141.15,1e-08]
[1745118079126,33.49584029,141.16,141.15,1e-08]
[1745118079328,47.27584029,141.16,141.15,1e-08]
[1745118079809,7.49584029,141.19,141.15,1e-08]
[1745118080015,13.78,141.18,141.15,1e-08]
[1745118080215,21.27584029,141.18,141.15,1e-08]
[1745118081041,13.78,141.18,141.15,1e-08]
[1745118081333,7.49584029,141.19,141.15,1e-08]
[1745118081531,7.49584029,141.18,141.15,1e-08]
[1745118083915,7.49584029,141.16,141.15,1e-08]
[1745118086635,14.5800001,141.16,141.15,1e-08]
[1745118087235,33.22964896,141.16,141.15,1e-08]
[1745118088446,44.64964886,141.15,141.12,0.063]
[1745118088634,26.14548915,141.13,141.12,0.063]
[1745118090648,33.23115484,141.13,141.12,0.063]
[1745118091544,14.58150598,141.13,141.12,0.063]
[1745118102342,33.23115484,141.13,141.12,0.063]
[1745118102938,47.13115484,141.13,141.12,0.063]
[1745118104848,28.48150598,141.13,141.12,0.063]
[1745118108340,47.13115484,141.13,141.12,0.063]
[1745118111360,39.63531455,141.13,141.12,0.063]
[1745118111692,20.98566569,141.13,141.12,0.063]
[1745118112061,28.48150598,141.13,141.12,0.063]
[1745118117865,14.58150598,141.13,141.12,0.063]
[1745118118065,28.48150598,141.13,141.12,0.063]
[1745118118772,14.58150598,141.13,141.12,0.063]
[1745118118951,28.48150598,141.13,141.12,0.063]
[1745118120277,14.58150598,141.13,141.12,0.063]
[1745118120459,28.48150598,141.13,141.12,0.063]
[1745118123199,14.58150598,141.13,141.12,0.063]
[1745118125062,28.40121445,141.14,141.12,0.063]
[1745118126074,7.49584029,141.13,141.12,0.063]
[1745118126277,14.58150598,141.13,141.12,0.063]
[1745118127175,33.23115484,141.13,141.12,0.063]
[1745118127960,14.58150598,141.13,141.12,0.063]
[1745118130080,7.08566569,141.13,141.12,0.063]
[1745118130271,7.08265457,141.19,141.12,7.55884029]
[1745118130578,7.08265457,141.19,141.14,7.49584029]
[1745118130766,14.57849486,141.19,141.14,7.49584029]
[1745118130962,14.57849486,141.19,141.13,7.49584029]
[1745118131163,7.49584029,141.18,141.13,7.49584029]
[1745118131362,7.49584029,141.16,141.12,0.063]
[1745118131982,7.49584029,141.15,141.12,0.063]
[1745118132367,18.64964886,141.18,141.12,0.063]
[1745118132368,14.58100395,141.14,141.12,0.063]
[1745118141795,14.58150598,141.13,141.12,0.063]
[1745118141995,7.08566569,141.13,141.12,0.063]
[1745118143195,26.14548915,141.13,141.12,0.063]
[1745118143881,33.23115484,141.13,141.12,0.063]
[1745118146596,14.58150598,141.13,141.12,0.063]
[1745118147888,7.08566569,141.13,141.12,0.063]
[1745118148202,14.58150598,141.13,141.12,0.063]
[1745118159203,7.0846617,141.15,141.12,0.063]
[1745118159390,13.82,141.16,141.12,0.063]
[1745118159787,21.31584029,141.16,141.12,0.063]
[1745118159986,20.90447523,141.16,141.12,0.063]
[1745118160287,7.49584029,141.15,141.12,0.063]
[1745118160802,38.61487477,141.16,141.12,0.063]
[1745118161005,7.49584029,141.13,141.12,0.063]
[1745118162197,14.58150598,141.13,141.12,0.063]
[1745118172820,7.08566569,141.13,141.12,0.063]
[1745118174400,7.49584029,141.13,141.12,0.063]
[1745118175521,14.58150598,141.13,141.12,0.063]
[1745118181616,33.23115484,141.13,141.12,0.063]
[1745118188624,47.05115484,141.13,141.12,0.063]
[1745118188833,20.90566569,141.13,141.12,0.063]
[1745118189127,28.40150598,141.13,141.12,0.063]
[1745118203039,14.58150598,141.13,141.12,0.063]
[1745118205337,33.23115484,141.13,141.12,0.063]
[1745118207033,26.14548915,141.11,141.1,0.063]
[1745118208244,33.23215912,141.11,141.1,0.063]
[1745118212042,14.58251026,141.11,141.1,0.063]
[1745118232772,7.08666997,141.11,141.1,0.063]
[1745118233266,20.88625423,141.12,141.1,0.063]
[1745118233466,28.38209452,141.12,141.1,0.063]
[1745118235065,7.49584029,141.11,141.1,0.063]
[1745118235888,14.58251026,141.11,141.1,0.063]
[1745118237766,33.23215912,141.11,141.1,0.063]
[1745118238172,33.23215912,141.11,141.1,1e-08]
[1745118245488,28.38150598,141.13,141.1,1e-08]
[1745118246005,7.49584029,141.12,141.1,1e-08]
[1745118246193,20.88566569,141.13,141.1,1e-08]
[1745118246383,7.49584029,141.12,141.1,1e-08]
[1745118246894,28.38150598,141.13,141.1,1e-08]
[1745118247398,7.49584029,141.12,141.1,1e-08]
[1745118247804,14.58244495,141.12,141.1,1e-08]
[1745118248104,7.08660466,141.12,141.1,1e-08]
[1745118248279,20.88582187,141.13,141.1,1e-08]
[1745118248483,7.49584029,141.12,141.1,1e-08]
[1745118250205,14.58249584,141.12,141.1,1e-08]
[1745118254810,7.49584029,141.11,141.1,1e-08]
[1745118255584,14.58251026,141.11,141.1,1e-08]
[1745118261217,7.08666997,141.11,141.1,1e-08]
[1745118263518,14.58251026,141.11,141.1,1e-08]
[1745118276516,33.23215912,141.11,141.1,1e-08]
[1745118277421,59.23215912,141.11,141.1,1e-08]
[1745118278215,33.23215912,141.11,141.06,0.973722]
[1745118278417,26.14548915,141.07,141.06,0.973722]
[1745118278717,39.92548915,141.07,141.06,0.973722]
[1745118280521,47.01416852,141.07,141.06,0.973722]
[1745118287009,44.64964886,141.05,141.04,0.063]
[1745118287207,52.14548915,141.05,141.04,0.063]
[1745118288519,89.21853481,141.05,141.04,0.063]
[1745118288913,59.23517365,141.05,141.04,0.063]
[1745118296526,7.0896845,141.05,141.04,0.063]
[1745118297433,14.58552479,141.05,141.04,0.063]
[1745118313239,33.23517365,141.05,141.04,0.063]
[1745118315962,33.23517365,141.05,141.04,1e-08]
[1745118326360,7.0896845,141.05,141.04,1e-08]
[1745118326660,14.58552479,141.05,141.04,1e-08]
[1745118327443,33.23517365,141.05,141.04,1e-08]
[1745118329654,89.21853481,141.05,141.04,1e-08]
[1745118329959,97.46833481,141.05,141.04,1e-08]
[1745118330836,26.14548915,141.01,141.0,0.363]
[1745118331735,13.8,141.02,141.0,0.363]
[1745118331937,21.29584029,141.02,141.0,0.363]
[1745118332153,13.8,141.02,141.0,0.363]
[1745118332354,7.49584029,141.01,141.0,0.363]
[1745118333365,14.58753591,141.01,141.0,0.363]
[1745118333558,33.23718477,141.01,141.0,0.363]
[1745118334147,14.58753591,141.01,141.0,0.363]
[1745118335575,7.09169562,141.01,141.0,0.363]
[1745118335854,13.8,141.02,141.0,0.363]
[1745118335855,20.89125439,141.02,141.0,0.363]
[1745118337043,28.38709468,141.02,141.0,0.363]
[1745118340469,14.58709468,141.02,141.0,0.363]
[1745118340662,7.49584029,141.01,141.0,0.363]
[1745118343573,14.58753591,141.01,141.0,0.363]
[1745118350377,7.09169562,141.01,141.0,0.363]
[1745118350578,7.09125317,141.02,141.0,0.363]
[1745118351574,14.58709346,141.02,141.0,0.363]
[1745118351774,7.49584029,141.01,141.0,0.363]
[1745118352482,14.58753591,141.01,141.0,0.363]
[1745118353183,7.0912308,141.02,141.0,0.363]
[1745118353377,14.58707109,141.02,141.0,0.363]
[1745118354280,7.0912308,141.02,141.0,0.363]
[1745118354485,7.09088002,141.03,141.0,0.363]
[1745118355065,14.58672031,141.03,141.0,0.363]
[1745118355271,7.49584029,141.02,141.0,0.363]
[1745118355590,14.58672031,141.03,141.0,0.363]
[1745118355796,7.49584029,141.02,141.0,0.363]
[1745118356781,14.58753591,141.01,141.0,0.363]
[1745118357470,33.23718477,141.01,141.0,0.363]
[1745118373092,59.23718477,141.01,141.0,0.363]
[1745118374191,59.23718477,141.01,140.98,0.063]
[1745118374192,18.64964886,141.0,140.98,0.063]
[1745118374407,7.49584029,140.99,140.98,0.063]
[1745118375298,59.23819076,140.99,140.98,1e-08]
[1745118376304,18.64964886,140.98,140.95,0.063]
[1745118376483,26.14548915,140.96,140.95,0.063]
[1745118376984,26.14548915,140.96,140.95,1e-08]
[1745118376985,52.14548915,140.96,140.95,1e-08]
[1745118377389,59.23970027,140.96,140.95,1e-08]
[1745118378201,63.22306143,140.96,140.95,1e-08]
[1745118378493,59.23970027,140.96,140.95,1e-08]
[1745118382120,33.23970027,140.96,140.95,1e-08]
[1745118382299,59.23970027,140.96,140.95,1e-08]
[1745118391906,14.59005141,140.96,140.95,1e-08]
[1745118392110,7.09421112,140.96,140.95,1e-08]
[1745118393286,25.74385998,140.96,140.95,1e-08]
[1745118393506,33.23970027,140.96,140.95,1e-08]
[1745118397211,14.59005141,140.96,140.95,1e-08]
[1745118397416,20.89389874,140.97,140.95,1e-08]
[1745118398598,28.38973903,140.97,140.95,1e-08]
[1745118398797,26.14548915,140.96,140.95,1e-08]
[1745118399996,33.23970027,140.96,140.95,1e-08]
[1745118400200,7.09421112,140.96,140.95,1e-08]
[1745118400699,14.59005141,140.96,140.95,1e-08]
[1745118401716,33.23970027,140.96,140.95,1e-08]
[1745118418134,7.09421112,140.96,140.95,1e-08]
[1745118419427,33.23970027,140.96,140.95,1e-08]
[1745118422532,44.64964886,140.95,140.94,1e-08]
[1745118422720,44.64964886,140.95,140.89,0.063]
[1745118422922,7.49584029,140.92,140.89,0.063]
[1745118423637,7.0967284,140.91,140.89,0.063]
[1745118424838,7.0962248,140.92,140.89,0.063]
[1745118425319,14.59206509,140.92,140.89,0.063]
[1745118431041,7.49584029,140.91,140.89,0.063]
[1745118432924,7.09723207,140.9,140.89,0.063]
[1745118433326,7.09683189,140.91,140.89,0.063]
[1745118435348,20.89642057,140.92,140.89,0.063]
[1745118436343,7.0932047,140.98,140.91,33.49584029]
[1745118436524,7.09169562,141.01,140.94,7.49584029]
[1745118436726,18.64964886,140.98,140.93,7.49584029]
[1745118437035,52.14548915,140.98,140.92,7.49584029]
[1745118437224,26.14548915,140.98,140.93,7.49584029]
[1745118437439,59.23901632,140.98,140.93,7.49584029]
[1745118437840,51.74317603,140.98,140.93,7.49584029]
[1745118438147,25.74317603,140.98,140.93,7.49584029]
[1745118438444,25.74317603,140.98,140.94,7.49584029]
[1745118439344,14.58869398,140.99,140.94,7.49584029]
[1745118441938,7.09285369,140.99,140.94,7.49584029]
[1745118442825,14.58869398,140.99,140.94,7.49584029]
[1745118444833,7.49584029,140.98,140.93,7.49584029]
[1745118445138,26.14548915,140.98,140.93,7.49584029]
[1745118445543,7.09370788,140.97,140.93,7.49584029]
[1745118447641,14.58954817,140.97,140.92,7.49584029]
[1745118452564,18.64964886,140.96,140.9,9.05714029]
[1745118452769,7.49584029,140.95,140.9,7.49584029]
[1745118452958,14.59105811,140.94,140.89,26.063]
[1745118453263,14.59105811,140.94,140.89,33.55884029]
[1745118453445,14.59105811,140.94,140.89,7.55884029]
[1745118453652,14.59105811,140.94,140.89,0.063]
[1745118453852,7.49584029,140.92,140.89,0.063]
[1745118454363,7.49584029,140.91,140.89,0.063]
[1745118454965,7.09723207,140.9,140.89,0.063]
[1745118455565,33.24272122,140.9,140.89,0.063]
[1745118455861,60.65572122,140.9,140.89,1e-08]
[1745118456267,18.64964886,140.86,140.85,0.063]
[1745118456561,108.54548915,140.86,140.85,0.063]
[1745118456761,26.14548915,140.86,140.85,0.063]
[1745118456967,33.24473662,140.86,140.85,0.063]
[1745118464379,18.64964886,140.86,140.85,0.063]
[1745118464588,13.8,140.87,140.85,0.063]
[1745118465077,13.8,140.87,140.85,7.55884029]
[1745118465263,13.8,140.87,140.85,0.063]
[1745118465464,13.8,140.87,140.85,7.55884029]
[1745118466077,7.0978661,140.89,140.85,7.55884029]
[1745118466458,33.24281606,140.9,140.85,7.55884029]
[1745118473485,7.49584029,140.89,140.85,0.063]
[1745118474985,14.59379697,140.89,140.85,0.063]
[1745118486704,7.09795668,140.89,140.85,0.063]
[1745118488102,14.59379697,140.89,140.85,0.063]
[1745118489399,7.49584029,140.87,140.85,0.063]
[1745118491378,14.59379697,140.89,140.85,0.063]
[1745118491797,7.09795668,140.89,140.85,0.063]
[1745118492793,7.09795668,140.89,140.85,7.55884029]
[1745118493788,7.09795668,140.89,140.85,0.063]
[1745118494192,14.59379697,140.89,140.85,0.063]
[1745118494383,7.49584029,140.88,140.85,0.063]
[1745118496304,14.59439745,140.88,140.85,0.063]
[1745118497311,7.09855716,140.88,140.85,0.063]
[1745118497800,7.49584029,140.87,140.85,0.063]
[1745118497980,7.49584029,140.86,140.85,0.063]
[1745118498182,26.14548915,140.88,140.85,0.063]
[1745118498603,7.09874352,140.87,140.85,0.063]
[1745118498777,14.59458381,140.87,140.85,0.063]
[1745118501608,33.24473662,140.86,140.85,0.063]
[1745118501787,47.04473662,140.86,140.85,0.063]
[1745118505310,20.89924747,140.86,140.85,0.063]
[1745118505496,13.8,140.86,140.85,0.063]
[1745118505694,7.09887663,140.87,140.85,0.063]
[1745118506710,7.09823963,140.88,140.85,0.063]
[1745118513513,7.09773582,140.89,140.85,0.063]
[1745118513720,7.09773582,140.89,140.86,7.49584029]
[1745118515118,20.89738552,140.9,140.87,7.49584029]
[1745118517044,13.8,140.9,140.87,7.49584029]
[1745118517603,20.89734375,140.9,140.87,7.49584029]
[1745118520824,13.8,140.9,140.87,7.49584029]
[1745118522123,7.12486496,140.95,140.89,7.49584029]
[1745118522421,7.12486496,140.95,140.91,7.49584029]
[1745118522422,0.03,140.95,140.91,7.49584029]
[1745118525633,0.03,140.95,140.91,14.59255312]
[1745118528422,0.03,140.95,140.92,7.49584029]
[1745118530332,7.52584029,140.95,140.9,14.59291494]
[1745118530534,14.62069631,140.95,140.9,14.59291494]
[1745118531235,7.12485602,140.95,140.9,14.59291494]
[1745118531434,14.62069631,140.95,140.9,14.59291494]
[1745118532256,14.62069631,140.95,140.9,7.49584029]
[1745118532435,7.49584029,140.92,140.86,15.14198239]
[1745118532628,7.49584029,140.92,140.87,7.49584029]
[1745118532831,7.49584029,140.91,140.87,7.49584029]
[1745118533034,7.49584029,140.91,140.86,16.20682268]
[1745118534340,14.59257892,140.91,140.86,16.20682268]
[1745118534942,26.82634886,140.94,140.87,7.49584029]
[1745118534943,14.59220249,140.92,140.87,7.49584029]
[1745118535119,7.0963622,140.92,140.88,7.49584029]
[1745118544147,14.59220249,140.92,140.88,7.49584029]
[1745118550434,7.49584029,140.91,140.86,7.49584029]
[1745118550638,7.49584029,140.9,140.85,7.55884029]
[1745118551337,7.49584029,140.88,140.85,0.063]
[1745118555158,14.59377003,140.89,140.85,0.063]
[1745118565963,7.49584029,140.88,140.85,0.063]
[1745118566668,14.59377003,140.89,140.85,0.063]
[1745118567965,14.59377003,140.89,140.85,7.55884029]
[1745118568160,14.59377003,140.89,140.85,0.063]
[1745118568664,7.49584029,140.88,140.85,0.063]
[1745118568969,7.49584029,140.87,140.85,0.063]
[1745118569366,7.49584029,140.86,140.85,0.063]
[1745118569974,14.59508776,140.86,140.85,0.063]
[1745118570472,33.24473662,140.86,140.85,0.063]
[1745118580079,73.04473662,140.86,140.85,0.063]
[1745118580262,33.49584029,140.84,140.83,0.063]
[1745118581162,40.59609589,140.84,140.83,0.063]
[1745118582079,59.24574475,140.84,140.83,0.063]
[1745118585483,82.4,140.85,140.83,0.063]
[1745118585484,14.5957628,140.85,140.83,0.063]
[1745118590189,7.09992251,140.85,140.83,0.063]
[1745118596073,14.5957628,140.85,140.83,0.063]
[1745118602178,26.14548915,140.84,140.83,0.063]
[1745118602800,33.24574475,140.84,140.83,0.063]
[1745118604102,14.59579939,140.85,140.83,0.063]
[1745118604605,7.49584029,140.84,140.83,0.063]
[1745118604982,14.59609589,140.84,140.83,0.063]
[1745118605601,7.1002556,140.84,140.83,0.063]
[1745118606197,14.59609589,140.84,140.83,0.063]
[1745118611712,7.0998959,140.85,140.83,0.063]
[1745118615013,14.59573619,140.85,140.83,0.063]
[1745118618312,7.0998959,140.85,140.83,0.063]
[1745118618611,14.5952099,140.86,140.83,0.063]
[1745118623095,7.09936961,140.86,140.83,0.063]
[1745118623302,7.49584029,140.84,140.83,0.063]
[1745118623519,26.14548915,140.84,140.83,0.063]
[1745118624926,33.24574475,140.84,140.83,0.063]
[1745118631225,41.35374475,140.84,140.83,0.063]
[1745118633332,33.24574475,140.84,140.83,0.063]
[1745118637338,7.09977728,140.85,140.83,0.063]
[1745118637535,7.49584029,140.84,140.83,0.063]
[1745118638636,14.59609589,140.84,140.83,0.063]
[1745118638837,7.09994721,140.85,140.83,0.063]
[1745118640035,7.49584029,140.87,140.83,0.063]
[1745118640721,14.59488964,140.87,140.83,0.063]
[1745118644437,0.03,140.91,140.86,7.49584029]
[1745118644621,0.03,140.91,140.88,7.49584029]
[1745118646326,0.03,140.91,140.89,7.49584029]
[1745118646527,0.03,140.91,140.9,7.49584029]
[1745118647443,0.03,140.91,140.89,9.04894029]
[1745118647633,0.03,140.91,140.89,1.5531]
[1745118650229,0.03,140.91,140.89,9.04894029]
[1745118650451,0.03,140.91,140.89,16.14654365]
[1745118650949,0.03,140.91,140.9,7.49584029]
[1745118652445,0.03,140.91,140.9,14.59307236]
[1745118652837,0.03,140.95,140.91,26.0]
[1745118653147,0.03,140.95,140.94,7.49584029]
[1745118654138,0.03,140.95,140.94,33.49584029]
[1745118654538,0.03,140.95,140.94,40.59105811]
[1745118656835,0.03,140.95,140.91,81.3]
[1745118657041,0.03,140.95,140.91,7.49584029]
[1745118657232,0.03,140.95,140.91,33.49584029]
[1745118657438,7.49584029,140.94,140.89,7.49584029]
[1745118657632,7.49584029,140.94,140.87,1.5678]
[1745118657857,7.52584029,140.95,140.89,7.49584029]
[1745118658233,7.49584029,140.94,140.89,7.49584029]
[1745118658432,0.03,140.95,140.9,7.49584029]
[1745118658645,0.03,140.95,140.92,7.49584029]
[1745118658839,0.03,140.95,140.91,7.49584029]
[1745118659039,0.03,140.95,140.89,26.0]
[1745118659040,7.52584029,140.95,140.9,7.49584029]
[1745118659237,7.49584029,140.94,140.89,33.49584029]
[1745118659961,7.52584029,140.95,140.9,7.49584029]
[1745118660542,14.6208303,140.95,140.9,7.49584029]
[1745118660955,7.49584029,140.94,140.89,7.49584029]
[1745118661641,14.6208303,140.95,140.9,7.49584029]
[1745118662366,7.12499001,140.95,140.91,7.49584029]
[1745118664367,0.03,140.95,140.91,14.59254413]
[1745118664859,0.03,140.95,140.92,7.49584029]
[1745118666963,7.52584029,140.95,140.9,7.49584029]
[1745118667566,0.03,140.95,140.91,7.49584029]
[1745118670147,7.49584029,140.94,140.88,26.0]
[1745118670461,7.49584029,140.93,140.88,33.49584029]
[1745118671042,7.49584029,140.94,140.89,7.49584029]
[1745118671248,7.49584029,140.93,140.88,33.49584029]
[1745118673063,14.59179206,140.93,140.88,33.49584029]
[1745118673261,14.59179206,140.93,140.88,7.49584029]
[1745118673853,14.59179206,140.93,140.87,34.66623212]
[1745118673854,7.09595177,140.93,140.89,7.49584029]
[1745118674460,14.59121887,140.94,140.89,7.49584029]
[1745118675758,7.09537858,140.94,140.89,7.49584029]
[1745118675966,7.12482957,140.95,140.91,7.49584029]
[1745118679071,7.49584029,140.92,140.83,8.8141847]
[1745118679269,7.49584029,140.89,140.84,26.0]
[1745118679574,7.49584029,140.89,140.84,33.49584029]
[1745118680073,7.49584029,140.89,140.84,7.49584029]
[1745118680374,7.49584029,140.9,140.85,7.49584029]
[1745118680570,7.49584029,140.93,140.88,7.49584029]
[1745118680762,8.0176,140.94,140.89,7.49584029]
[1745118680962,7.09572128,140.93,140.89,7.49584029]
[1745118683181,7.09572128,140.93,140.89,11.80391373]
[1745118684782,11.80391373,140.92,140.87,11.80391373]
[1745118684975,11.80391373,140.91,140.86,11.80391373]
[1745118687680,7.09723207,140.9,140.87,11.80391373]
[1745118690384,7.0967284,140.91,140.87,11.80391373]
[1745118691583,7.0967284,140.91,140.88,11.80391373]
[1745118692581,11.80391373,140.93,140.88,11.80391373]
[1745118692775,6.4519,140.94,140.89,11.80391373]
[1745118692776,7.0962248,140.92,140.89,11.80391373]
[1745118693788,7.09572128,140.93,140.89,11.80391373]
[1745118694863,7.09572128,140.93,140.88,11.80391373]
[1745118696167,11.80391373,140.92,140.87,11.80391373]
[1745118697182,11.80391373,140.92,140.87,26.0]
[1745118697588,11.80391373,140.92,140.87,37.80391373]
[1745118698082,7.0967284,140.91,140.87,37.80391373]
[1745118703196,32.39103666,140.93,140.87,33.55601218]
[1745118706769,32.39103666,140.93,140.88,7.55601218]
[1745118706987,14.65137898,140.94,140.89,7.55601218]
[1745118707191,7.0953668,140.94,140.91,7.55601218]
[1745118707374,7.0953668,140.94,140.9,7.55601218]
[1745118721206,7.55601218,140.94,140.89,14.65362779]
[1745118722410,14.65148954,140.94,140.89,14.65362779]
[1745118722708,7.09547736,140.94,140.9,7.55601218]
[1745118726210,14.6808718,140.95,140.9,14.65321373]
[1745118729404,14.6808718,140.95,140.9,7.55601218]
[1745118732211,14.6808718,140.95,140.9,14.65309181]
[1745118732916,0.03,140.95,140.91,7.55601218]
[1745118733090,0.03,140.95,140.93,7.55601218]
[1745118733505,0.03,140.95,140.92,7.55601218]
[1745118734006,0.03,140.95,140.93,7.55601218]
[1745118736400,0.03,140.95,140.94,7.55601218]
[1745118738099,0.03,140.95,140.94,14.65123]
[1745118745218,0.03,140.95,140.94,33.30087886]
[1745118747811,0.03,140.95,140.94,14.65123]
[1745118752023,0.03,140.95,140.94,33.30087886]
[1745118755619,0.03,140.99,140.98,26.0]
[1745118755938,0.03,141.01,140.98,53.84956104]
[1745118756153,0.03,141.01,141.0,7.55601218]
[1745118757844,0.03,141.01,141.0,14.64821076]
[1745118763841,0.03,141.01,140.99,26.0]
[1745118767745,0.03,141.01,140.98,7.55601218]
[1745118767951,0.03,141.01,140.97,33.55601218]
[1745118770650,0.03,141.01,140.97,40.64964319]
[1745118771035,0.03,141.01,140.98,7.55601218]
[1745118773450,0.03,141.01,140.94,17.73697241]
[1745118773451,0.03,141.01,140.95,7.09471443]
[1745118773754,0.03,141.01,140.98,7.55601218]
[1745118775354,0.03,141.01,140.97,40.64972006]
[1745118775859,0.03,141.01,140.98,7.55601218]
[1745118776353,0.03,141.01,140.98,14.64912845]
[1745118777656,0.03,141.01,140.99,7.55601218]
[1745118778047,0.03,141.01,140.99,14.64849174]
[1745118778453,0.03,141.01,141.0,7.55601218]
[1745118787259,0.03,141.02,141.0,59.29785962]
[1745118787475,0.03,141.02,141.01,7.55601218]
[1745118789461,0.03,141.02,141.01,14.6477078]
[1745118810388,0.03,141.05,141.03,18.64964886]
[1745118810567,0.03,141.07,141.06,33.55601218]
[1745118812482,0.03,141.07,141.06,40.64519408]
[1745118813183,0.03,141.09,141.06,59.29484294]
[1745118813392,0.03,141.09,141.07,7.55601218]
[1745118814498,0.03,141.09,141.07,14.64469155]
[1745118846118,0.03,141.09,141.07,7.08867937]
[1745118846311,0.03,141.09,141.07,14.64469155]
[1745118850523,0.03,141.09,141.04,81.3]
[1745118850819,7.7738,141.08,141.01,13.943]
[1745118851023,15.32981218,141.08,141.02,7.55601218]
[1745118851223,22.4183084,141.08,141.02,14.64699775]
[1745118852005,22.4183084,141.08,141.03,7.55601218]
[1745118858231,22.4183084,141.08,141.04,7.55601218]
[1745118859030,14.86229622,141.08,141.04,7.55601218]
[1745118860114,14.86229622,141.08,141.03,7.55601218]
[1745118860716,7.7738,141.08,141.05,7.55601218]
[1745118862524,7.7738,141.08,141.06,7.55601218]
[1745118867628,7.7738,141.08,141.05,7.55601218]
[1745118874546,0.03,141.08,141.06,7.55601218]
[1745118877633,0.03,141.08,141.03,7.55601218]
[1745118877634,7.58601218,141.08,141.03,7.55601218]
[1745118877940,7.55601218,141.07,141.01,33.15450185]
[1745118878140,15.81521218,141.08,141.02,7.55601218]
[1745118878327,15.81521218,141.08,141.03,7.55601218]
[1745118878844,8.2592,141.08,141.03,7.55601218]
[1745118879042,15.81521218,141.08,141.03,7.55601218]
[1745118879445,22.90356052,141.08,141.03,7.55601218]
[1745118880122,15.34754834,141.08,141.03,7.55601218]
[1745118881157,15.34754834,141.08,141.04,7.55601218]
[1745118886246,15.10754834,141.08,141.04,7.55601218]
[1745118891152,22.66356052,141.08,141.03,14.6466226]
[1745118899761,22.66356052,141.08,141.03,7.55601218]
[1745118900161,22.66356052,141.08,141.03,14.64661885]
[1745118900464,15.10754834,141.08,141.04,7.55601218]
[1745118901855,0.03,141.09,141.05,7.55601218]
[1745118902050,0.03,141.09,141.04,7.09010233]
[1745118902051,0.03,141.09,141.06,7.55601218]
[1745118902762,14.6737941,141.09,141.04,7.55601218]